bitfinex/quotes_BTCUSD_20250714
["timestamp","ask_amount","ask_price","bid_price","bid_amount"]
[1752457415079,0.0042,119060.0,119050.0,0.68317596]
[1752457416329,0.0042,119060.0,119050.0,0.66667596]
[1752457416534,0.012552,119060.0,119050.0,0.34583007]
[1752457416738,0.0042,119060.0,119050.0,0.34583007]
[1752457420119,0.0042,119060.0,119050.0,0.68187596]
[1752457422222,0.0042,119060.0,119050.0,0.88311596]
[1752457423411,0.0042,119060.0,119050.0,0.85171596]
[1752457424060,0.0042,119060.0,119050.0,0.54707007]
[1752457425342,0.0042,119060.0,119050.0,0.85171596]
[1752457425551,0.0042,119060.0,119050.0,0.88371596]
[1752457426396,0.0042,119060.0,119050.0,0.57907007]
[1752457426611,0.0042,119060.0,119050.0,0.88371596]
[1752457426821,0.0042,119060.0,119050.0,0.85171596]
[1752457427272,0.0042,119060.0,119050.0,0.54707007]
[1752457427704,0.0042,119060.0,119050.0,0.57867007]
[1752457427914,0.0042,119060.0,119050.0,0.88331596]
[1752457428140,0.0042,119060.0,119050.0,0.57867007]
[1752457429163,0.0042,119060.0,119050.0,0.88331596]
[1752457431927,0.0042,119060.0,119050.0,0.85171596]
[1752457433328,0.0042,119060.0,119050.0,0.54707007]
[1752457439646,0.0042,119060.0,119050.0,0.57857007]
[1752457440406,0.0042,119060.0,119050.0,0.88321596]
[1752457445413,0.0002,119070.0,119060.0,0.12246014]
[1752457445657,0.00034961,119070.0,119060.0,0.33834007]
[1752457445897,0.00034961,119070.0,119060.0,0.34151007]
[1752457446128,0.3426155,119070.0,119060.0,0.33621007]
[1752457446550,0.03489961,119070.0,119060.0,0.33621007]
[1752457446806,0.03689961,119070.0,119060.0,0.33621007]
[1752457447939,0.03689961,119070.0,119060.0,0.20789007]
[1752457448140,0.03689961,119070.0,119060.0,0.33625007]
[1752457448560,0.03889961,119070.0,119060.0,0.33625007]
[1752457449968,0.03889961,119070.0,119060.0,0.33834007]
[1752457450876,0.03889961,119070.0,119060.0,0.33625007]
[1752457451089,0.3435455,119070.0,119060.0,0.33621007]
[1752457451497,0.03889961,119070.0,119060.0,0.33621007]
[1752457454973,0.03889961,119070.0,119060.0,0.33830007]
[1752457457489,0.03889961,119070.0,119060.0,0.34147007]
[1752457457927,0.00434961,119070.0,119060.0,0.67671596]
[1752457458802,0.00234961,119070.0,119060.0,0.67671596]
[1752457459067,0.00234961,119070.0,119060.0,0.82928681]
[1752457460386,0.00034961,119070.0,119060.0,0.82928681]
[1752457460829,0.00034961,119070.0,119060.0,0.44225844]
[1752457461044,0.00034961,119070.0,119060.0,0.34247007]
[1752457461256,0.01829961,119070.0,119060.0,0.34247007]
[1752457461469,0.03469961,119070.0,119060.0,0.21415007]
[1752457461682,0.34195504,119070.0,119060.0,0.33721007]
[1752457462158,0.03776961,119070.0,119060.0,0.33721007]
[1752457463468,0.03469961,119070.0,119060.0,0.33721007]
[1752457466458,0.33888504,119070.0,119060.0,0.33721007]
[1752457466676,0.34195504,119070.0,119060.0,0.33717007]
[1752457466885,0.34195504,119070.0,119060.0,0.32262922]
[1752457467341,0.34195504,119070.0,119060.0,0.33717007]
[1752457467564,0.34195504,119070.0,119060.0,0.22925078]
[1752457467786,0.34195504,119070.0,119060.0,0.22825078]
[1752457468205,0.34395504,119070.0,119060.0,0.22825078]
[1752457468444,0.34395504,119070.0,119060.0,0.21370993]
[1752457468654,0.34395504,119070.0,119060.0,0.12828]
[1752457471747,0.68395504,119070.0,119060.0,0.12828]
[1752457473027,0.0312,119060.0,119050.0,0.30584]
[1752457473237,0.33538543,119060.0,119050.0,0.43408]
[1752457473489,0.34055543,119060.0,119050.0,0.43408]
[1752457474124,0.34055543,119060.0,119050.0,0.30584]
[1752457474368,0.68055543,119060.0,119050.0,0.3058]
[1752457474592,0.68055543,119060.0,119050.0,0.43404]
[1752457475503,0.68155543,119060.0,119050.0,0.43404]
[1752457475712,0.70673643,119060.0,119050.0,0.43404]
[1752457475920,0.70673643,119060.0,119050.0,0.3058]
[1752457476134,0.70673643,119060.0,119050.0,0.43504]
[1752457476775,0.70673643,119060.0,119050.0,0.43404]
[1752457476982,0.70973643,119060.0,119050.0,0.43404]
[1752457479156,0.70873643,119060.0,119050.0,0.43404]
[1752457479299,0.71073643,119060.0,119050.0,0.43404]
[1752457486404,0.71073643,119060.0,119050.0,0.32944]
[1752457492444,0.71073643,119060.0,119050.0,0.2012]
[1752457492630,0.71073643,119060.0,119050.0,0.32948]
[1752457497213,0.71073643,119060.0,119050.0,0.2012]
[1752457497431,0.79616636,119060.0,119050.0,0.32948]
[1752457499214,0.81184493,119060.0,119050.0,0.32948]
[1752457505198,0.81187017,119060.0,119050.0,0.32948]
[1752457507099,0.81085366,119060.0,119050.0,0.32948]
[1752457507432,0.8108559,119060.0,119050.0,0.32948]
[1752457508730,0.81085791,119060.0,119050.0,0.32948]
[1752457509378,0.50667248,119060.0,119050.0,0.32948]
[1752457509592,0.81085791,119060.0,119050.0,0.32948]
[1752457511613,0.69218449,119060.0,119050.0,0.32948]
[1752457512497,0.70788449,119060.0,119050.0,0.32948]
[1752457512713,0.72428449,119060.0,119050.0,0.32948]
[1752457514197,0.72429533,119060.0,119050.0,0.32948]
[1752457514609,0.72429566,119060.0,119050.0,0.32948]
[1752457517530,0.72747566,119060.0,119050.0,0.2012]
[1752457517941,1.11709102,119060.0,119050.0,0.32944]
[1752457518894,1.11709102,119060.0,119050.0,0.2012]
[1752457519134,1.13318974,119060.0,119050.0,0.32944]
[1752457519637,1.16251994,119060.0,119050.0,0.32944]
[1752457519861,1.15951994,119060.0,119050.0,0.32944]
[1752457520052,1.55951994,119060.0,119050.0,0.32944]
[1752457520355,1.56351994,119060.0,119050.0,0.32944]
[1752457521664,1.57191843,119060.0,119050.0,0.32944]
[1752457521875,1.56351994,119060.0,119050.0,0.32944]
[1752457522925,1.57190958,119060.0,119050.0,0.32944]
[1752457523594,1.57190958,119060.0,119020.0,0.06734857]
[1752457523812,0.45642993,119050.0,119040.0,0.20128]
[1752457524019,0.46163993,119050.0,119040.0,0.20128]
[1752457524360,0.48682793,119050.0,119040.0,0.20128]
[1752457525015,1.09519879,119050.0,119040.0,0.32952]
[1752457526055,1.09819879,119050.0,119040.0,0.32952]
[1752457526477,1.10119879,119050.0,119040.0,0.32952]
[1752457527522,0.79701336,119050.0,119040.0,0.32952]
[1752457527897,0.76283336,119050.0,119040.0,0.33149]
[1752457528114,0.76283336,119050.0,119040.0,0.33452]
[1752457528517,0.76283336,119050.0,119040.0,0.33149]
[1752457528704,0.76283336,119050.0,119040.0,0.32952]
[1752457531050,0.77833336,119050.0,119040.0,0.32952]
[1752457531260,0.79650336,119050.0,119040.0,0.32952]
[1752457531465,1.10068879,119050.0,119040.0,0.32952]
[1752457531671,0.79650336,119050.0,119040.0,0.32952]
[1752457534756,0.79333336,119050.0,119040.0,0.32952]
[1752457534969,0.77833336,119050.0,119040.0,0.32952]
[1752457535190,0.76283336,119050.0,119040.0,0.32952]
[1752457537584,0.78150336,119050.0,119040.0,0.32952]
[1752457537809,0.79690336,119050.0,119040.0,0.32952]
[1752457538461,0.77833336,119050.0,119040.0,0.32952]
[1752457539321,0.76283336,119050.0,119040.0,0.32952]
[1752457544807,0.79880336,119050.0,119040.0,0.32952]
[1752457545432,1.10298879,119050.0,119040.0,0.32952]
[1752457545914,1.10298879,119050.0,119040.0,0.20128]
[1752457546197,1.10298879,119050.0,119040.0,0.32952]
[1752457547368,1.1187049,119050.0,119040.0,0.32952]
[1752457548517,1.1187049,119050.0,119040.0,0.20128]
[1752457548733,1.11870734,119050.0,119040.0,0.32948]
[1752457549806,1.51870734,119050.0,119040.0,0.32948]
[1752457550379,1.21135191,119050.0,119040.0,0.32948]
[1752457550598,1.19505191,119050.0,119040.0,0.32948]
[1752457550816,1.17855191,119050.0,119040.0,0.32948]
[1752457551565,1.17855185,119050.0,119040.0,0.32948]
[1752457551970,1.19435185,119050.0,119040.0,0.32948]
[1752457554500,0.77855185,119050.0,119040.0,0.32948]
[1752457554760,0.77855429,119050.0,119040.0,0.32948]
[1752457555438,0.78172429,119050.0,119040.0,0.20132]
[1752457556601,0.79832429,119050.0,119040.0,0.32952]
[1752457556832,1.11760972,119050.0,119040.0,0.32952]
[1752457557078,1.13572296,119050.0,119040.0,0.32952]
[1752457557266,1.12000203,119050.0,119040.0,0.32952]
[1752457557506,1.13572377,119050.0,119040.0,0.32952]
[1752457557941,1.12000203,119050.0,119040.0,0.32952]
[1752457558174,1.13572333,119050.0,119040.0,0.32952]
[1752457559355,1.13572206,119050.0,119040.0,0.32952]
[1752457560026,1.13572206,119050.0,119040.0,0.20132]
[1752457560246,1.13572206,119050.0,119030.0,0.20132]
[1752457560247,1.22585099,119050.0,119030.0,0.20132]
[1752457560475,0.98434086,119040.0,119030.0,0.20132]
[1752457560688,1.08744209,119040.0,119030.0,0.20132]
[1752457560908,1.51263109,119040.0,119030.0,0.20132]
[1752457561125,1.11263109,119040.0,119030.0,0.20132]
[1752457561351,1.21486117,119040.0,119030.0,0.20132]
[1752457561570,1.17927249,119040.0,119030.0,0.32952]
[1752457561785,1.17087217,119040.0,119030.0,0.32952]
[1752457562250,1.18927249,119040.0,119030.0,0.33052]
[1752457562511,0.34,119030.0,119020.0,0.20132]
[1752457562744,1.14293596,119030.0,119020.0,0.32952]
[1752457562998,1.1840367,119030.0,119020.0,0.20132]
[1752457563241,1.50502397,119030.0,119020.0,0.32952]
[1752457563483,1.23988086,119030.0,119020.0,0.32952]
[1752457563712,1.22528415,119030.0,119000.0,0.20132]
[1752457563921,0.67508543,119010.0,119000.0,0.20132]
[1752457564137,0.76246536,119010.0,119000.0,0.20132]
[1752457564373,0.77472936,119010.0,119000.0,0.20132]
[1752457564589,0.75675936,119010.0,119000.0,0.20132]
[1752457564810,0.75575936,119010.0,119000.0,0.20132]
[1752457565254,0.75575936,119010.0,119000.0,0.32952]
[1752457565500,0.75575936,119010.0,119000.0,0.33052]
[1752457565965,0.75575936,119010.0,119000.0,0.3325]
[1752457568638,0.75575936,119010.0,119000.0,0.3315]
[1752457568876,0.78167118,119010.0,119000.0,0.32952]
[1752457569110,0.78864118,119010.0,119000.0,0.33052]
[1752457569319,0.80866844,119010.0,119000.0,0.20232]
[1752457569539,1.12482661,119010.0,119000.0,0.20232]
[1752457569749,1.12482661,119010.0,119000.0,0.33052]
[1752457571753,1.12382661,119010.0,119000.0,0.33052]
[1752457571962,1.11982661,119010.0,119000.0,0.32952]
[1752457572195,1.12582661,119010.0,119000.0,0.33052]
[1752457572406,1.12682661,119010.0,119000.0,0.33052]
[1752457573205,1.12882661,119010.0,119000.0,0.33052]
[1752457574759,1.12682661,119010.0,119000.0,0.33052]
[1752457575168,1.13082661,119010.0,119000.0,0.33052]
[1752457579344,1.14650692,119010.0,119000.0,0.33052]
[1752457581189,1.16453297,119010.0,119000.0,0.33052]
[1752457581417,1.14650692,119010.0,119000.0,0.33052]
[1752457583121,1.13082661,119010.0,119000.0,0.33052]
[1752457583323,1.16453267,119010.0,119000.0,0.33052]
[1752457591080,1.14650255,119010.0,119000.0,0.33052]
[1752457591410,1.16456827,119010.0,119000.0,0.33052]
[1752457591843,0.52419741,119010.0,119000.0,0.33052]
[1752457592065,0.16907586,119010.0,119000.0,0.36718]
[1752457592278,0.46541459,119010.0,119000.0,0.36718]
[1752457592480,0.46541554,119010.0,119000.0,0.36718]
[1752457592724,0.86541554,119010.0,119000.0,0.36718]
[1752457592966,1.22348126,119010.0,119000.0,0.36718]
[1752457593187,0.82348126,119010.0,119000.0,0.36718]
[1752457596575,1.13267669,119010.0,119000.0,0.33052]
[1752457596796,1.17222724,119010.0,119000.0,0.33052]
[1752457597434,1.17222724,119010.0,119000.0,0.20232]
[1752457597646,1.17222724,119010.0,119000.0,0.33052]
[1752457600774,1.17224673,119010.0,119000.0,0.33052]
[1752457601667,1.16439193,119010.0,119000.0,0.33052]
[1752457601885,1.17224727,119010.0,119000.0,0.33052]
[1752457603585,1.17224859,119010.0,119000.0,0.33052]
[1752457606587,1.17226017,119010.0,119000.0,0.33052]
[1752457609471,1.17227316,119010.0,119000.0,0.33052]
[1752457610980,1.16440955,119010.0,119000.0,0.33052]
[1752457612469,1.16440966,119010.0,119000.0,0.33052]
[1752457615825,1.16440966,119010.0,118990.0,0.20148383]
[1752457615826,0.34,119000.0,118990.0,0.20148383]
[1752457616043,1.07103812,119000.0,118990.0,0.12816]
[1752457616274,1.10510384,119000.0,118990.0,0.12816]
[1752457616526,0.032,118980.0,118970.0,0.2014]
[1752457616759,0.032,118980.0,118970.0,0.20148384]
[1752457616760,1.47081079,118980.0,118970.0,0.20148384]
[1752457616990,0.34,118970.0,118960.0,0.2014]
[1752457617223,1.05242079,118970.0,118960.0,0.2014]
[1752457617445,1.07934673,118970.0,118960.0,0.2014]
[1752457617673,1.47934673,118970.0,118960.0,0.32956]
[1752457617883,1.50355173,118970.0,118960.0,0.32956]
[1752457618323,1.47535173,118970.0,118960.0,0.32956]
[1752457618536,1.47735173,118970.0,118960.0,0.33056]
[1752457619179,1.1701763,118970.0,118960.0,0.3326]
[1752457619391,1.1701763,118970.0,118960.0,0.33573]
[1752457620749,1.1701763,118970.0,118960.0,0.35203]
[1752457621650,1.1701763,118970.0,118960.0,0.33573]
[1752457624309,1.1701763,118970.0,118960.0,0.35203]
[1752457624998,1.1701763,118970.0,118960.0,0.36713]
[1752457625487,1.1681563,118970.0,118960.0,0.36713]
[1752457628036,1.1681563,118970.0,118960.0,0.33573]
[1752457628258,1.1701563,118970.0,118960.0,0.33573]
[1752457628916,1.52253006,118970.0,118960.0,0.33056]
[1752457629744,1.12253006,118970.0,118960.0,0.20144]
[1752457629958,1.10957173,118970.0,118960.0,0.20144]
[1752457631057,1.10957173,118970.0,118960.0,0.45784]
[1752457631719,0.7894863,118970.0,118960.0,0.45784]
[1752457632146,0.48530087,118970.0,118960.0,0.45784]
[1752457632358,0.7894863,118970.0,118960.0,0.45784]
[1752457633010,1.10997173,118970.0,118960.0,0.20144]
[1752457633234,1.50380657,118970.0,118960.0,0.20144]
[1752457633459,0.0317,118960.0,118950.0,0.20144]
[1752457633681,1.07043079,118960.0,118950.0,0.20144]
[1752457633927,1.47043079,118960.0,118950.0,0.20144]
[1752457634146,1.47933879,118960.0,118950.0,0.20144]
[1752457634367,1.47933879,118960.0,118950.0,0.32964]
[1752457634585,1.48133879,118960.0,118950.0,0.33064]
[1752457634800,1.48333879,118960.0,118950.0,0.33064]
[1752457635474,1.46793879,118960.0,118950.0,0.33064]
[1752457636663,1.16082336,118960.0,118950.0,0.33268]
[1752457636897,0.75882336,118960.0,118950.0,0.36673]
[1752457637358,0.45463793,118960.0,118950.0,0.36673]
[1752457637588,0.45463793,118960.0,118950.0,0.20144]
[1752457637825,0.11463793,118960.0,118950.0,0.20144]
[1752457638053,0.344,118960.0,118950.0,0.20144]
[1752457638963,0.344,118960.0,118950.0,0.4578]
[1752457640436,0.30818543,118960.0,118950.0,0.4883]
[1752457641554,0.32388419,118960.0,118950.0,0.4883]
[1752457642011,0.30818543,118960.0,118950.0,0.4883]
[1752457642695,0.32388641,118960.0,118950.0,0.4883]
[1752457642931,0.35970098,118960.0,118950.0,0.4883]
[1752457643164,0.344,118960.0,118950.0,0.4883]
[1752457645507,0.35971773,118960.0,118950.0,0.4883]
[1752457647091,0.35971773,118960.0,118950.0,0.79248543]
[1752457647092,0.004,118960.0,118950.0,0.79248543]
[1752457647282,0.004,118960.0,118950.0,1.08818543]
[1752457647993,0.002,118960.0,118950.0,1.08818543]
[1752457649485,0.002,118960.0,118950.0,0.784]
[1752457650144,0.00833594,118970.0,118960.0,0.0321]
[1752457650610,0.68510485,118980.0,118960.0,0.0321]
[1752457650822,0.77053478,118980.0,118970.0,0.27236]
[1752457651041,0.43053478,118980.0,118970.0,0.28886]
[1752457651507,0.77053478,118980.0,118970.0,0.28886]
[1752457652149,0.77962006,118980.0,118970.0,0.28886]
[1752457652997,0.78462006,118980.0,118970.0,0.28986]
[1752457654786,0.78766006,118980.0,118970.0,0.27336]
[1752457655001,0.78765899,118980.0,118970.0,0.27336]
[1752457656327,0.78765899,118980.0,118970.0,0.28946]
[1752457656738,0.78765899,118980.0,118970.0,0.27336]
[1752457657491,0.77193889,118980.0,118970.0,0.27336]
[1752457657719,0.76889889,118980.0,118970.0,0.28956]
[1752457658392,0.35408553,118980.0,118970.0,0.59374543]
[1752457658830,0.35408553,118980.0,118970.0,0.28956]
[1752457658999,0.65827096,118980.0,118970.0,0.28956]
[1752457659202,0.66131096,118980.0,118970.0,0.27336]
[1752457659626,0.66131096,118980.0,118970.0,0.25736]
[1752457660392,0.66340096,118980.0,118970.0,0.25736]
[1752457660607,0.78123089,118980.0,118970.0,0.25736]
[1752457660833,0.78123089,118980.0,118970.0,0.3306]
[1752457661435,0.80643089,118980.0,118970.0,0.3306]
[1752457664457,0.50224546,118980.0,118970.0,0.3306]
[1752457664663,0.80643089,118980.0,118970.0,0.3306]
[1752457665297,0.80643089,118980.0,118970.0,0.33056]
[1752457667486,0.80643089,118980.0,118970.0,0.20244]
[1752457667725,1.11061632,118980.0,118930.0,0.032]
[1752457667940,0.45946993,118970.0,118960.0,0.2014]
[1752457668153,0.86155993,118970.0,118960.0,0.32952]
[1752457668592,0.87965456,118970.0,118960.0,0.32952]
[1752457669016,1.51323242,118970.0,118960.0,0.32952]
[1752457669680,1.51423242,118970.0,118960.0,0.33052]
[1752457669881,1.51623242,118970.0,118960.0,0.33052]
[1752457670991,1.51523242,118970.0,118960.0,0.32952]
[1752457671212,1.51923242,118970.0,118960.0,0.33052]
[1752457671808,1.51723242,118970.0,118960.0,0.33052]
[1752457672053,1.81923242,118970.0,118960.0,0.33052]
[1752457676106,1.82708601,118970.0,118960.0,0.33052]
[1752457678121,1.82708208,118970.0,118960.0,0.33052]
[1752457678324,1.81923242,118970.0,118960.0,0.33052]
[1752457679065,1.19276693,118970.0,118960.0,0.33052]
[1752457679276,1.48095236,118970.0,118960.0,0.33052]
[1752457680891,1.52868419,118970.0,118960.0,0.33052]
[1752457681107,1.54388419,118970.0,118960.0,0.33052]
[1752457681326,1.49615236,118970.0,118960.0,0.33052]
[1752457684336,1.80033779,118970.0,118960.0,0.33052]
[1752457687369,1.49615236,118970.0,118960.0,0.33052]
[1752457688783,1.19196693,118970.0,118960.0,0.33052]
[1752457689017,1.49615236,118970.0,118960.0,0.33052]
[1752457691050,1.48095236,118970.0,118960.0,0.33052]
[1752457693363,1.49695236,118970.0,118960.0,0.33052]
[1752457695773,1.48095236,118970.0,118960.0,0.33052]
[1752457696439,1.09904697,118970.0,118960.0,0.33052]
[1752457696689,1.08404697,118970.0,118960.0,0.33052]
[1752457696922,1.06082236,118970.0,118960.0,0.36292]
[1752457697348,1.07653912,118970.0,118960.0,0.36292]
[1752457697561,1.07976912,118970.0,118960.0,0.36292]
[1752457697794,1.06405236,118970.0,118960.0,0.36292]
[1752457700354,1.06405236,118970.0,118960.0,0.34662]
[1752457700565,1.06405236,118970.0,118960.0,0.33052]
[1752457701443,1.06610236,118970.0,118960.0,0.33052]
[1752457719745,1.09660236,118970.0,118960.0,0.33052]
[1752457719950,1.11471982,118970.0,118960.0,0.33052]
[1752457722106,1.41890525,118970.0,118960.0,0.33052]
[1752457722313,1.43463128,118970.0,118960.0,0.33052]
[1752457724803,1.83463128,118970.0,118960.0,0.33052]
[1752457725464,1.84249657,118970.0,118960.0,0.33052]
[1752457726175,1.84250133,118970.0,118960.0,0.33052]
[1752457727727,1.44250133,118970.0,118960.0,0.33052]
[1752457728344,1.84250133,118970.0,118960.0,0.33052]
[1752457728885,1.81890525,118970.0,118960.0,0.33052]
[1752457729094,1.84249588,118970.0,118960.0,0.33052]
[1752457730069,1.44249588,118970.0,118960.0,0.33052]
[1752457731674,1.84249588,118970.0,118960.0,0.33052]
[1752457732171,0.0328,118950.0,118940.0,0.20148]
[1752457732393,0.76457536,118950.0,118940.0,0.20148]
[1752457732628,0.76760536,118950.0,118940.0,0.20148]
[1752457733527,0.79381336,118950.0,118940.0,0.33156]
[1752457735592,0.81939375,118950.0,118940.0,0.33156]
[1752457737966,0.79418575,118950.0,118940.0,0.33156]
[1752457739190,0.80989831,118950.0,118940.0,0.33156]
[1752457739405,0.79418575,118950.0,118940.0,0.33156]
[1752457739655,0.82799323,118950.0,118940.0,0.33156]
[1752457740061,0.8098987,118950.0,118940.0,0.33156]
[1752457740204,0.82799343,118950.0,118940.0,0.33156]
[1752457741124,1.22799343,118950.0,118940.0,0.33156]
[1752457741549,1.22699343,118950.0,118940.0,0.32956]
[1752457741899,1.22999343,118950.0,118940.0,0.33056]
[1752457742137,1.23099343,118950.0,118940.0,0.33056]
[1752457742537,1.22999343,118950.0,118940.0,0.33056]
[1752457742927,1.23199343,118950.0,118940.0,0.33056]
[1752457744062,1.2138987,118950.0,118940.0,0.33056]
[1752457744268,1.23198594,118950.0,118940.0,0.33056]
[1752457744661,1.2138987,118950.0,118940.0,0.33056]
[1752457745606,1.21388995,118950.0,118940.0,0.33056]
[1752457746042,1.2319773,118950.0,118940.0,0.33056]
[1752457746231,1.21388904,118950.0,118940.0,0.33056]
[1752457746439,1.23197752,118950.0,118940.0,0.33056]
[1752457746775,1.21388904,118950.0,118940.0,0.33056]
[1752457747178,0.83197747,118950.0,118940.0,0.33056]
[1752457747990,0.81388904,118950.0,118940.0,0.33056]
[1752457748432,0.83197929,118950.0,118940.0,0.33056]
[1752457749429,0.83198029,118950.0,118940.0,0.33056]
[1752457749644,0.83198178,118950.0,118940.0,0.33056]
[1752457751170,1.23198178,118950.0,118940.0,0.33056]
[1752457754146,1.21627749,118950.0,118940.0,0.33056]
[1752457754300,1.23198787,118950.0,118940.0,0.33056]
[1752457754921,1.23198783,118950.0,118940.0,0.33056]
[1752457755953,1.21578783,118950.0,118940.0,0.33056]
[1752457757127,1.36917152,118950.0,118940.0,0.33056]
[1752457759091,1.21664742,118950.0,118940.0,0.33056]
[1752457760384,1.23254742,118950.0,118940.0,0.33056]
[1752457762543,1.21664742,118950.0,118940.0,0.33056]
[1752457762759,0.80004742,118950.0,118940.0,0.33056]
[1752457762964,0.80006329,118950.0,118940.0,0.33056]
[1752457763179,1.19487329,118950.0,118940.0,0.36156]
[1752457763596,1.19796329,118950.0,118940.0,0.36156]
[1752457763806,0.79796329,118950.0,118940.0,0.34616]
[1752457764019,0.49291827,118950.0,118940.0,0.34616]
[1752457764230,0.77987155,118950.0,118940.0,0.34616]
[1752457764446,0.48982827,118950.0,118940.0,0.36246]
[1752457764679,0.77678155,118950.0,118940.0,0.36246]
[1752457765486,0.76105534,118950.0,118940.0,0.36246]
[1752457766499,0.65004502,118950.0,118940.0,0.36246]
[1752457766818,0.345,118950.0,118940.0,0.36246]
[1752457767618,0.65004502,118950.0,118940.0,0.36246]
[1752457767828,0.64704502,118950.0,118940.0,0.36146]
[1752457768041,0.64504502,118950.0,118940.0,0.36146]
[1752457768247,0.64604502,118950.0,118940.0,0.36346]
[1752457769396,0.341,118950.0,118940.0,0.36346]
[1752457769573,0.64604502,118950.0,118940.0,0.36346]
[1752457785072,0.56969451,118950.0,118940.0,0.36346]
[1752457789688,0.56969451,118950.0,118940.0,0.34716]
[1752457789689,0.57293451,118950.0,118940.0,0.34716]
[1752457789983,0.57293451,118950.0,118940.0,0.33156]
[1752457790726,0.57490451,118950.0,118940.0,0.33156]
[1752457790901,0.57390703,118950.0,118940.0,0.33156]
[1752457791280,0.57390703,118950.0,118940.0,0.20348]
[1752457791501,0.80260154,118950.0,118940.0,0.33144]
[1752457791706,0.92043147,118950.0,118940.0,0.20348]
[1752457792157,1.14912598,118950.0,118940.0,0.33144]
[1752457792627,0.92043147,118950.0,118940.0,0.33144]
[1752457793710,0.94501249,118950.0,118940.0,0.33144]
[1752457795227,0.79267191,118950.0,118940.0,0.33144]
[1752457801348,0.79267191,118950.0,118940.0,0.20348]
[1752457801565,0.80839007,118950.0,118940.0,0.33144]
[1752457802707,0.83359907,118950.0,118940.0,0.33144]
[1752457802898,0.80839007,118950.0,118940.0,0.33144]
[1752457803510,0.83359907,118950.0,118940.0,0.33144]
[1752457803933,0.80839007,118950.0,118940.0,0.33144]
[1752457805315,0.79267191,118950.0,118940.0,0.33144]
[1752457805517,0.80838012,118950.0,118940.0,0.33144]
[1752457805926,0.80837903,118950.0,118940.0,0.33144]
[1752457806332,0.79267191,118950.0,118940.0,0.33144]
[1752457817406,0.80835996,118950.0,118940.0,0.33144]
[1752457820219,0.82644396,118950.0,118940.0,0.33144]
[1752457820448,0.80835996,118950.0,118940.0,0.33144]
[1752457821647,0.82644786,118950.0,118940.0,0.33144]
[1752457823075,0.8264614,118950.0,118940.0,0.33144]
[1752457823394,0.82646186,118950.0,118940.0,0.33144]
[1752457823776,0.81075981,118950.0,118940.0,0.33144]
[1752457824000,0.82646196,118950.0,118940.0,0.33144]
[1752457824757,0.85167096,118950.0,118940.0,0.33144]
[1752457824962,1.2331676,118950.0,118940.0,0.33144]
[1752457825932,0.3726,118940.0,118930.0,0.20148]
[1752457826157,1.16241716,118940.0,118930.0,0.20148]
[1752457826385,1.56777291,118940.0,118930.0,0.20148]
[1752457826594,1.58347331,118940.0,118930.0,0.20148]
[1752457826774,1.58247331,118940.0,118930.0,0.20148]
[1752457826996,1.20104834,118940.0,118930.0,0.45732]
[1752457827189,1.20104834,118940.0,118930.0,0.45736991]
[1752457827829,1.20204834,118940.0,118930.0,0.45736991]
[1752457828218,1.20504834,118940.0,118930.0,0.45836991]
[1752457829348,1.18696044,118940.0,118930.0,0.45836991]
[1752457829548,1.2050377,118940.0,118930.0,0.45836991]
[1752457829973,1.18696044,118940.0,118930.0,0.45836991]
[1752457830690,1.20503659,118940.0,118930.0,0.45836991]
[1752457831739,1.20502954,118940.0,118930.0,0.45836991]
[1752457831979,1.51014965,118940.0,118930.0,0.20252991]
[1752457832206,0.0316,118930.0,118920.0,0.20148]
[1752457832411,1.07217015,118930.0,118920.0,0.20148]
[1752457832633,0.34,118920.0,118910.0,0.0004]
[1752457832832,1.03860015,118920.0,118910.0,0.20188]
[1752457833302,1.05697015,118920.0,118910.0,0.3298]
[1752457833882,1.05697015,118920.0,118910.0,0.20188]
[1752457834196,1.05697015,118920.0,118910.0,0.3298]
[1752457834603,1.05697015,118920.0,118910.0,0.3308]
[1752457834859,1.05797015,118920.0,118910.0,0.3308]
[1752457835082,1.05797015,118920.0,118910.0,0.20152]
[1752457835299,1.05797015,118920.0,118900.0,0.3290944]
[1752457835527,0.66742011,118920.0,118910.0,0.20152]
[1752457835747,0.75285004,118920.0,118910.0,0.20152]
[1752457836388,0.75285004,118920.0,118910.0,0.32944]
[1752457836594,0.73645004,118920.0,118910.0,0.20152]
[1752457836808,1.04157015,118920.0,118910.0,0.20152]
[1752457837026,1.04057015,118920.0,118900.0,0.0353944]
[1752457837253,0.08542993,118910.0,118900.0,0.0333944]
[1752457837465,0.39055004,118910.0,118900.0,0.0333944]
[1752457837688,0.38955004,118910.0,118900.0,0.0333944]
[1752457838348,0.38955004,118910.0,118900.0,0.1613144]
[1752457838971,0.39055004,118910.0,118900.0,0.1613144]
[1752457839867,0.08542993,118910.0,118900.0,0.1613144]
[1752457840079,0.39055004,118910.0,118900.0,0.1623144]
[1752457840515,0.73055004,118910.0,118900.0,0.1623144]
[1752457842855,0.64612011,118910.0,118900.0,0.1623144]
[1752457843423,0.65460478,118910.0,118900.0,0.1623144]
[1752457845429,0.65460478,118910.0,118900.0,0.3638344]
[1752457846310,0.74493471,118910.0,118900.0,0.2039144]
[1752457846522,0.77773471,118910.0,118900.0,0.20152]
[1752457846745,0.77773471,118910.0,118900.0,0.3294]
[1752457846957,0.3728,118900.0,118890.0,0.20152]
[1752457847187,0.76532004,118900.0,118890.0,0.20152]
[1752457847409,0.76825004,118900.0,118890.0,0.20152]
[1752457847836,0.75195004,118900.0,118890.0,0.20152]
[1752457848052,0.09032993,118900.0,118890.0,0.3294]
[1752457848258,0.39845004,118900.0,118890.0,0.329526]
[1752457849279,0.39945004,118900.0,118890.0,0.329526]
[1752457852480,0.09432993,118900.0,118890.0,0.329526]
[1752457852691,0.39945004,118900.0,118890.0,0.329526]
[1752457853305,0.004,118900.0,118890.0,0.361926]
[1752457853458,0.504,118900.0,118890.0,0.361926]
[1752457853908,0.844,118900.0,118890.0,0.361926]
[1752457854108,0.344,118900.0,118890.0,0.361926]
[1752457855188,0.64912011,118900.0,118890.0,0.361926]
[1752457857810,0.65205011,118900.0,118890.0,0.361926]
[1752457858580,0.64912011,118900.0,118890.0,0.361926]
[1752457859740,0.344,118900.0,118890.0,0.361926]
[1752457859947,0.64912011,118900.0,118890.0,0.361926]
[1752457860375,0.344,118900.0,118890.0,0.361926]
[1752457861238,0.64912011,118900.0,118890.0,0.361926]